bitfinex/quotes_SOLUSD_20240620
["timestamp","ask_amount","ask_price","bid_price","bid_amount"]
[1718858989939,6.0773,134.14,134.1,7.4567]
[1718858990140,16.6463,134.16,134.06,0.17]
[1718858990357,16.6463,134.16,134.1,18.6426]
[1718858990565,16.6463,134.16,134.13,7.4552]
[1718858991856,16.6463,134.16,134.1,18.6426]
[1718858991857,16.6463,134.16,134.12,7.4557]
[1718858992056,24.1001,134.16,134.12,7.4557]
[1718858992243,16.6463,134.16,134.1,18.6426]
[1718858992440,16.6463,134.16,134.12,7.4556]
[1718858993251,24.1001,134.16,134.11,7.4562]
[1718858993638,16.6463,134.16,134.1,18.6426]
[1718858993840,16.6463,134.16,134.13,7.4552]
[1718858995539,0.34,134.15,134.08,18.6453]
[1718858995755,16.8163,134.16,134.12,7.4559]
[1718858995956,16.6463,134.16,134.12,7.4559]
[1718858996157,24.1003,134.16,134.11,7.4564]
[1718858997053,24.1003,134.16,134.12,7.456]
[1718859000261,7.4544,134.15,134.11,7.4563]
[1718859000443,7.4544,134.15,134.08,18.6444]
[1718859000637,0.17,134.15,134.06,20.0]
[1718859000842,45.68,134.15,134.09,7.4576]
[1718859001047,7.455,134.14,134.09,7.4576]
[1718859001357,7.49,134.13,134.1,7.457]
[1718859001658,7.49,134.13,134.07,26.1357]
[1718859001860,7.49,134.13,134.1,7.4567]
[1718859002246,7.4549,134.14,134.09,7.4574]
[1718859002442,7.49,134.13,134.1,7.457]
[1718859002760,16.6463,134.16,134.09,26.1338]
[1718859002959,16.6463,134.16,134.13,7.4553]
[1718859003165,7.49,134.15,134.13,7.4553]
[1718859003481,16.6463,134.16,134.14,7.4548]
[1718859003770,7.49,134.17,134.14,7.4548]
[1718859003970,7.49,134.17,134.13,7.4551]
[1718859004263,14.1151,134.18,134.13,7.4551]
[1718859004465,7.49,134.16,134.13,7.4551]
[1718859005259,23.091,134.19,134.14,7.49]
[1718859005466,15.601,134.19,134.17,7.4527]
[1718859005854,15.601,134.19,134.18,7.4526]
[1718859006056,15.601,134.19,134.17,7.453]
[1718859007162,6.6283,134.21,134.17,7.453]
[1718859007468,6.6283,134.21,134.18,7.4526]
[1718859007650,15.4615,134.2,134.07,5.95158241]
[1718859007846,7.4533,134.17,134.08,20.0]
[1718859008048,7.4533,134.17,134.05,22.47]
[1718859008674,7.964,134.16,134.11,7.4562]
[1718859009048,0.51,134.16,134.12,7.4559]
[1718859010247,0.51,134.16,134.05,22.47]
[1718859010248,0.51,134.16,134.13,7.4552]
[1718859010449,0.51,134.16,134.06,0.17]
[1718859010656,0.51,134.16,134.12,7.4558]
[1718859011173,0.51,134.16,134.07,18.6469]
[1718859011466,15.4615,134.2,134.13,18.6373]
[1718859011647,0.34,134.19,134.08,20.0]
[1718859011845,0.34,134.19,134.14,7.4547]
[1718859012043,20.34,134.19,134.14,7.4547]
[1718859012367,22.9133,134.2,134.16,7.4533]
[1718859012368,15.4615,134.2,134.16,7.4533]
[1718859012550,15.4615,134.2,134.13,18.6385]
[1718859012753,7.4527,134.18,134.13,7.455]
[1718859013551,0.17,134.17,134.13,7.455]
[1718859013754,0.34,134.18,134.13,7.455]
[1718859014358,15.4615,134.2,134.1,0.17]
[1718859014557,15.4615,134.2,134.15,7.4541]
[1718859014963,22.913,134.2,134.15,7.4541]
[1718859015471,7.6221,134.19,134.14,7.4548]
[1718859015764,0.17,134.19,134.12,18.6387]
[1718859015964,0.17,134.19,134.09,6.3211]
[1718859015965,0.17,134.19,134.18,7.4526]
[1718859016268,0.34,134.19,134.14,7.4544]
[1718859016474,0.17,134.18,134.14,7.4544]
[1718859017549,0.34,134.18,134.14,7.4544]
[1718859017748,7.7933,134.17,134.12,7.4557]
[1718859017975,0.34,134.17,134.13,7.4552]
[1718859018147,0.34,134.17,134.08,20.0]
[1718859018353,7.7938,134.16,134.1,7.457]
[1718859018569,0.17,134.15,134.11,7.4564]
[1718859019172,0.17,134.16,134.13,7.4554]
[1718859019371,28.1336,134.17,134.09,18.6441]
[1718859019576,7.4563,134.12,134.04,15.6889]
[1718859019795,7.4563,134.12,134.06,7.4588]
[1718859020069,0.17,134.11,134.04,34.3387]
[1718859020260,7.455,134.14,134.09,7.4571]
[1718859020575,20.34,134.13,134.1,7.4569]
[1718859020866,20.34,134.15,134.11,7.4564]
[1718859021074,20.34,134.15,134.12,7.4558]
[1718859021075,20.0,134.15,134.12,7.4558]
[1718859021264,21.4769,134.16,134.05,0.17]
[1718859021453,21.4769,134.16,134.05,45.68]
[1718859021650,22.2343,134.2,134.18,7.4521]
[1718859021858,22.2343,134.2,134.11,15.8436]
[1718859022050,22.2343,134.2,134.16,18.6341]
[1718859022273,22.2343,134.2,134.18,7.4525]
[1718859022474,23.3793,134.23,134.18,7.4525]
[1718859022853,23.3793,134.23,134.17,7.453]
[1718859023164,15.9294,134.23,134.13,18.6373]
[1718859023368,7.4511,134.21,134.15,7.4538]
[1718859023675,7.4511,134.21,134.16,7.4537]
[1718859024064,0.17,134.2,134.16,7.4537]
[1718859024383,0.17,134.21,134.16,7.4533]
[1718859024873,0.51,134.21,134.16,7.4533]
[1718859025758,7.961,134.21,134.15,7.4541]
[1718859026157,15.9294,134.23,134.13,18.6373]
[1718859027377,23.3794,134.23,134.17,7.4528]
[1718859028263,23.3794,134.23,134.18,7.4525]
[1718859028459,15.9294,134.23,134.18,7.4525]
[1718859029055,15.9294,134.23,134.2,7.4512]
[1718859029358,6.0103,134.24,134.17,18.633]
[1718859029580,6.0103,134.24,134.21,7.4508]
[1718859029752,15.8178,134.26,134.19,18.629]
[1718859029950,15.8178,134.26,134.23,7.4494]
[1718859030363,15.8178,134.26,134.22,7.4503]
[1718859030570,15.8178,134.26,134.23,7.4497]
[1718859030772,15.8178,134.26,134.22,7.4502]
[1718859031055,15.8178,134.26,134.23,7.4498]
[1718859031248,15.8178,134.26,134.22,7.4502]
[1718859031450,15.8178,134.26,134.21,7.4508]
[1718859031658,23.2661,134.26,134.21,7.4508]
[1718859031858,15.8178,134.26,134.21,7.4508]
[1718859032259,15.8178,134.26,134.22,7.4503]
[1718859032459,15.8178,134.26,134.21,7.4507]
[1718859032874,0.17,134.25,134.21,7.4507]
[1718859033057,15.8178,134.26,134.21,7.4507]
[1718859033575,0.68,134.25,134.13,38.0242]
[1718859033764,7.4493,134.24,134.14,20.0]
[1718859033960,7.9602,134.23,134.18,7.4525]
[1718859034174,14.1323,134.22,134.17,7.4531]
[1718859034473,14.1324,134.22,134.17,7.4531]
[1718859034772,15.8208,134.2,134.16,7.4533]
[1718859034975,15.8208,134.2,134.14,18.6359]
[1718859035162,15.8208,134.2,134.17,7.4531]
[1718859035472,15.8208,134.2,134.18,7.4526]
[1718859036869,6.5119,134.22,134.19,7.4521]
[1718859037055,6.5119,134.22,134.2,7.4515]
[1718859037456,6.5119,134.22,134.19,7.4519]
[1718859037656,6.5119,134.22,134.18,7.4525]
[1718859037852,6.5119,134.22,134.17,5.33538684]
[1718859038064,6.5119,134.22,134.16,18.6333]
[1718859039071,6.5119,134.22,134.19,7.4518]
[1718859040874,6.5119,134.22,134.18,7.4525]
[1718859041063,13.9623,134.22,134.17,7.4529]
[1718859041467,6.5119,134.22,134.18,7.4525]
[1718859042254,6.5119,134.22,134.19,7.452]
[1718859044155,6.5119,134.22,134.18,7.4524]
[1718859044357,13.9623,134.22,134.17,7.4531]
[1718859044560,7.621,134.21,134.16,7.4535]
[1718859044778,6.5119,134.22,134.1,28.43644531]
[1718859044973,16.3225,134.24,134.11,88.15]
[1718859045159,16.3225,134.24,134.21,7.4506]
[1718859045961,16.3225,134.24,134.2,18.6288]
[1718859046155,6.1891,134.25,134.16,0.17]
[1718859046367,6.1891,134.25,134.21,7.4507]
[1718859046566,13.6379,134.25,134.2,7.4513]
[1718859047376,6.1891,134.25,134.21,7.4509]
[1718859047578,6.1891,134.25,134.16,65.68]
[1718859047877,6.1891,134.25,134.23,7.4497]
[1718859048270,6.1891,134.25,134.22,7.4503]
[1718859048966,6.1891,134.25,134.16,65.68]
[1718859049169,6.1891,134.25,134.22,7.45]
[1718859049370,6.1891,134.25,134.23,7.4498]
[1718859051884,22.5488,134.27,134.23,7.4498]
[1718859052680,22.5488,134.27,134.22,7.4502]
[1718859055467,15.1011,134.27,134.23,7.4498]
[1718859056075,15.1011,134.27,134.23,7.4495]
[1718859056272,15.1011,134.27,134.24,7.4492]
[1718859057791,15.1011,134.27,134.2,18.7976]
[1718859057792,15.1011,134.27,134.23,7.4496]
[1718859059288,15.1011,134.27,134.2,18.7976]
[1718859059289,6.3363,134.29,134.25,7.4483]
[1718859059471,6.3363,134.29,134.26,7.4482]
[1718859059674,15.9435,134.31,134.22,28.7441]
[1718859059878,15.9435,134.31,134.29,7.4462]
[1718859060185,6.6639,134.34,134.25,0.17]
[1718859060498,6.6639,134.34,134.25,88.15]
[1718859061289,6.6639,134.34,134.31,7.445]
[1718859061670,14.1079,134.34,134.25,88.12]
[1718859061870,7.4451,134.32,134.25,20.0]
[1718859062173,6.6639,134.34,134.25,18.6206]
[1718859062388,6.6639,134.34,134.22,6.1041]
[1718859062697,7.4469,134.29,134.23,20.0]
[1718859062871,45.17,134.33,134.23,20.0]
[1718859063068,15.0312,134.29,134.21,15.8306]
[1718859063289,22.4777,134.29,134.24,7.4491]
[1718859063471,0.17,134.31,134.19,260.0635]
[1718859063472,0.17,134.26,134.19,253.6]
[1718859063678,0.17,134.26,134.19,7.452]
[1718859063679,7.4496,134.24,134.19,7.452]
[1718859063873,7.4496,134.24,134.18,7.4525]
[1718859063874,0.17,134.23,134.18,7.4525]
[1718859064173,6.4536,134.22,134.17,7.453]
[1718859064473,6.4536,134.22,134.2,7.4514]
[1718859064789,6.4536,134.22,134.19,7.4519]
[1718859064993,6.4536,134.22,134.2,7.4515]
[1718859065375,6.4536,134.22,134.2,7.4512]
[1718859065582,6.1415,134.26,134.19,18.6302]
[1718859065770,6.1415,134.26,134.23,7.4494]
[1718859065975,6.1415,134.26,134.24,7.4491]
[1718859066205,6.1415,134.26,134.19,18.6302]
[1718859067390,6.1415,134.26,134.22,7.4503]
[1718859067697,15.5435,134.27,134.22,18.6259]
[1718859067895,16.3922,134.3,134.2,45.08]
[1718859068091,16.3922,134.3,134.29,7.4465]
[1718859068395,6.2467,134.33,134.3,7.4458]
[1718859068778,16.3922,134.3,134.15,22.2179]
[1718859068978,22.44,134.29,134.16,22.47]
[1718859069182,16.3922,134.3,134.16,22.47]
[1718859069380,23.8382,134.3,134.16,22.47]
[1718859069697,16.3922,134.3,134.16,22.47]
[1718859070196,16.3922,134.3,134.18,0.17]
[1718859070197,0.34,134.29,134.18,0.17]
[1718859070400,0.34,134.29,134.18,0.34]
[1718859070583,7.4471,134.28,134.19,0.17]
[1718859070792,7.4471,134.28,134.18,20.34]
[1718859071805,7.4483,134.26,134.18,20.34]
[1718859072184,7.4483,134.26,134.18,20.0]
[1718859072872,7.9578,134.27,134.16,20.0]
[1718859073082,0.51,134.27,134.22,7.45]
[1718859073286,0.17,134.29,134.23,7.4495]
[1718859073492,53.1269,134.29,134.23,7.4495]
[1718859073891,7.4471,134.28,134.23,7.4495]
[1718859075288,16.3922,134.3,134.27,7.4475]
[1718859075495,16.3922,134.3,134.17,0.17]
[1718859075685,16.3922,134.3,134.17,68.15]
[1718859075889,16.3922,134.3,134.24,7.449]
[1718859076084,23.8385,134.3,134.19,0.17]
[1718859076300,23.8385,134.3,134.25,7.4487]
[1718859076684,16.3922,134.3,134.26,7.448]
[1718859076883,16.3922,134.3,134.27,7.4476]
[1718859077102,16.3922,134.3,134.19,68.15]
[1718859077408,16.3922,134.3,134.26,7.4479]
[1718859077989,23.8382,134.3,134.25,7.4485]
[1718859079886,23.8382,134.3,134.26,7.4481]
[1718859080093,16.3922,134.3,134.26,7.4481]
[1718859080304,16.3922,134.3,134.21,0.17]
[1718859080603,16.3922,134.3,134.28,7.4469]
[1718859080999,7.4483,134.26,134.15,253.6]
[1718859081199,18.6178,134.28,134.09,637.29772118]
[1718859081789,45.34,134.27,134.12,22.47]
[1718859082098,0.34,134.26,134.12,22.47]
[1718859082409,7.6188,134.25,134.12,22.47]
[1718859082704,0.17,134.25,134.12,22.47]
[1718859082896,7.4505,134.22,134.12,22.47]
[1718859083105,7.45,134.23,134.12,22.47]
[1718859083497,6.2124,134.22,134.13,20.0]
[1718859085011,6.2124,134.22,134.14,68.15]
[1718859085199,6.2124,134.22,134.16,0.17]
[1718859085399,6.2124,134.22,134.16,0.68]
[1718859087692,6.5767,134.25,134.16,45.68]
[1718859087914,20.0,134.24,134.16,45.68]
[1718859089391,6.5767,134.25,134.18,0.17]
[1718859089596,6.5767,134.25,134.18,0.34]
[1718859091133,6.0435,134.28,134.18,0.34]
[1718859091421,7.4485,134.26,134.18,0.34]
[1718859091608,7.4485,134.26,134.18,0.17]
[1718859092822,27.4478,134.27,134.18,0.17]
[1718859093303,20.0,134.27,134.18,0.17]
[1718859093501,20.0,134.27,134.18,0.68]
[1718859094009,27.4476,134.27,134.18,0.68]
[1718859094211,27.4476,134.27,134.18,0.51]
[1718859095001,20.0,134.27,134.17,36.3232]
[1718859095201,20.0,134.27,134.13,44.89]
[1718859095202,0.17,134.24,134.13,16.4239]
[1718859095416,20.0,134.25,134.14,20.0]
[1718859095720,7.7896,134.24,134.14,20.0]
[1718859095904,27.4488,134.25,134.14,20.0]
[1718859096106,7.7893,134.24,134.14,20.0]
[1718859096311,52.7893,134.24,134.14,20.0]
[1718859096511,52.7893,134.24,134.15,0.34]
[1718859096717,27.4488,134.25,134.16,0.34]
[1718859097218,27.4488,134.25,134.16,20.17]
[1718859097413,27.4488,134.25,134.14,20.0]
[1718859097414,7.4505,134.22,134.14,20.0]
[1718859097603,7.4501,134.23,134.14,20.0]
[1718859098924,74.6388,134.24,134.15,0.17]
[1718859099822,74.6388,134.24,134.14,20.0]
[1718859100331,67.1893,134.24,134.14,20.0]
[1718859100514,7.4502,134.23,134.14,20.0]
[1718859100911,74.6388,134.24,134.14,20.0]
[1718859101840,67.1893,134.24,134.14,20.0]
[1718859102017,45.17,134.24,134.14,20.0]
[1718859102216,21.521,134.28,134.17,0.17]
[1718859102428,20.0,134.27,134.18,16.6186]
[1718859102627,7.4491,134.25,134.18,16.6186]
[1718859102935,20.0,134.27,134.18,16.6186]
[1718859103921,27.4478,134.27,134.18,16.6186]
[1718859105116,20.0,134.27,134.18,16.6186]
[1718859105523,16.2858,134.22,134.09,253.6]
[1718859105730,7.4528,134.18,134.07,37.7773]
[1718859105912,7.4528,134.18,134.08,20.0]
[1718859106110,7.6233,134.17,134.08,20.0]
[1718859106518,7.6233,134.17,134.07,37.7773]
[1718859106723,0.17,134.17,134.07,37.7773]
[1718859107534,0.17,134.17,134.08,0.68]
[1718859107740,0.17,134.17,134.08,45.68]
[1718859108034,0.51,134.19,134.08,45.68]
[1718859108236,0.17,134.18,134.08,45.68]
[1718859108420,20.17,134.18,134.1,0.17]
[1718859109017,27.6226,134.18,134.1,0.17]
[1718859109946,7.4533,134.17,134.09,20.0]
[1718859110150,20.0,134.18,134.09,20.0]
[1718859110357,7.453,134.18,134.08,20.0]
[1718859111536,7.7933,134.17,134.08,20.0]
[1718859111735,7.4538,134.16,134.08,20.0]
[1718859112040,7.6245,134.15,134.08,20.0]
[1718859112248,0.17,134.15,134.08,20.0]
[1718859113331,0.34,134.17,134.08,20.0]
[1718859113539,20.34,134.17,134.08,20.0]
[1718859113741,27.7932,134.17,134.08,20.0]
[1718859113935,7.4539,134.16,134.08,20.0]
[1718859114135,0.17,134.15,134.08,20.0]
[1718859115044,7.4588,134.07,134.01,20.0]
[1718859115346,0.17,134.1,133.97,15.8101]
[1718859115649,7.4593,134.06,133.97,15.8101]
[1718859116142,13.4997,134.07,133.97,15.8101]
[1718859116332,0.34,134.06,133.97,15.8101]
[1718859117540,0.17,134.08,133.97,38.2201]
[1718859117749,0.17,134.08,133.97,15.8101]
[1718859118246,7.4586,134.08,133.97,15.8101]
[1718859118430,20.0,134.07,133.98,20.0]
[1718859118634,20.0,134.07,133.99,0.34]
[1718859118944,20.0,134.08,133.99,0.34]
[1718859121141,27.4582,134.08,133.99,0.34]
[1718859121337,0.51,134.07,133.98,20.0]
[1718859121544,0.17,134.07,133.99,0.17]
[1718859121748,20.0,134.08,133.99,0.17]
[1718859122050,20.0,134.08,133.99,0.34]
[1718859122252,20.0,134.08,133.99,0.17]
[1718859122551,0.17,134.07,133.99,0.17]
[1718859123052,20.0,134.08,133.99,0.17]
[1718859123229,20.0,134.08,133.99,45.17]
[1718859123432,0.17,134.09,134.0,0.17]
[1718859123752,13.4812,134.1,134.01,0.17]
[1718859123950,6.0241,134.1,134.01,0.17]
[1718859124153,13.4813,134.1,134.01,0.17]
[1718859124455,7.4571,134.1,134.01,0.17]
[1718859127550,7.7981,134.09,134.0,20.0]
[1718859127731,7.7981,134.09,133.98,42.41]
[1718859127932,0.34,134.09,133.98,42.41]
[1718859128132,27.7976,134.09,133.98,20.0]
[1718859128545,20.0,134.09,133.99,22.41]
[1718859128752,0.17,134.1,133.98,20.0]
[1718859128753,20.17,134.1,134.01,0.17]
[1718859129045,20.17,134.1,134.0,45.0]
[1718859129249,7.4576,134.09,134.0,0.17]
[1718859129455,27.6273,134.1,134.0,20.17]
[1718859129652,0.34,134.09,134.0,20.17]
[1718859130353,7.7977,134.09,134.0,20.17]
[1718859131280,29.1659,134.16,134.02,22.58]
[1718859131558,20.0,134.13,134.04,0.17]
[1718859131860,7.4548,134.15,134.04,45.17]
[1718859132237,28.6559,134.16,134.04,45.17]
[1718859132438,7.4552,134.14,134.04,45.17]
[1718859132638,7.4555,134.13,134.04,45.17]
[1718859132856,7.4555,134.13,134.04,0.17]
[1718859133543,14.39443505,134.19,134.06,6.7211]
[1718859133861,7.4532,134.17,134.07,20.0]
[1718859134052,7.4538,134.16,134.07,20.0]
[1718859134456,7.4534,134.17,134.07,20.0]
[1718859134642,35.06680553,134.19,134.08,0.17]
[1718859134643,7.4527,134.18,134.08,0.17]
[1718859134844,7.4527,134.18,134.08,45.68]
[1718859135044,18.6327,134.18,134.07,20.0]
[1718859135246,20.0,134.17,134.06,6.5511]
[1718859135476,12.58680553,134.19,134.06,6.5511]
[1718859135477,22.48,134.16,134.06,6.5511]
[1718859135769,20.0,134.15,134.06,6.5511]
[1718859135969,0.51,134.14,134.06,6.5511]
[1718859136464,20.0,134.15,134.07,0.17]
[1718859136768,6.5939,134.19,134.07,45.68]
[1718859136939,22.87449456,134.2,134.07,45.68]
[1718859136940,20.0,134.18,134.1,16.1141]
[1718859137144,20.0,134.19,134.1,16.1141]
[1718859137345,20.0,134.19,134.11,0.17]
[1718859137656,7.4514,134.21,134.12,6.5351]
[1718859138043,7.4519,134.2,134.12,6.5351]
[1718859138641,7.451,134.21,134.12,6.5351]
[1718859139062,7.4506,134.22,134.12,6.5351]
[1718859139371,27.451,134.21,134.12,6.5351]
[1718859139737,20.0,134.21,134.13,0.17]
[1718859139938,20.0,134.21,134.14,15.1594]
[1718859140147,5.94816617,134.25,134.14,15.1594]
[1718859140148,20.0,134.23,134.14,15.1594]
[1718859140346,20.0,134.24,134.14,15.1594]
[1718859140758,7.4502,134.23,134.14,15.1594]
[1718859140960,20.0,134.22,134.14,15.1594]
[1718859141147,20.0,134.22,134.15,0.17]
[1718859141352,20.0,134.22,134.14,15.1594]
[1718859141743,20.0,134.22,134.15,0.17]
[1718859141941,24.44444766,134.26,134.15,0.17]
[1718859142160,45.0,134.25,134.15,20.0]
[1718859142363,27.4496,134.24,134.15,20.0]
[1718859142749,7.4499,134.23,134.15,20.0]
[1718859144747,0.17,134.23,134.15,20.0]
[1718859144957,7.4506,134.22,134.14,15.3294]
[1718859145464,27.4494,134.24,134.15,0.17]
[1718859145672,20.0,134.24,134.15,45.68]
[1718859146568,7.4478,134.27,134.19,15.0414]
[1718859147455,7.4473,134.28,134.19,15.0414]
[1718859147655,7.4467,134.29,134.19,15.0414]
[1718859147857,7.6172,134.28,134.19,15.0414]
[1718859148153,0.17,134.28,134.19,15.0414]
[1718859148359,0.34,134.28,134.19,15.0414]
[1718859148666,7.4478,134.27,134.19,15.0414]
[1718859148868,7.7873,134.28,134.19,15.0414]
[1718859150049,0.17,134.26,134.19,15.0414]
[1718859150470,7.4491,134.25,134.19,15.0414]
[1718859150674,7.4494,134.24,134.19,15.0414]
[1718859151268,0.17,134.24,134.19,15.0414]
[1718859152159,7.7896,134.24,134.19,15.0414]
[1718859152369,0.17,134.24,134.19,15.0414]
[1718859152849,7.6194,134.24,134.19,15.0414]
[1718859153051,7.6194,134.24,134.18,6.3362]
[1718859153052,0.34,134.23,134.16,15.6358]
[1718859153245,7.7908,134.22,134.16,15.6358]
[1718859153471,7.7913,134.21,134.16,15.6358]
[1718859155773,0.17,134.2,134.08,21.5272]
[1718859155955,0.34,134.2,134.09,20.0]
[1718859156155,7.4545,134.15,134.08,21.5272]
[1718859156357,7.455,134.14,134.08,21.5272]
[1718859156557,7.6245,134.15,134.08,21.5272]
[1718859156758,0.51,134.16,134.08,21.5272]
[1718859156968,20.17,134.16,134.08,21.5272]
[1718859157672,0.17,134.16,134.08,21.5272]
[1718859157877,0.51,134.17,134.08,21.5272]
[1718859158457,0.17,134.16,134.08,21.5272]
[1718859158672,7.964,134.16,134.08,21.5272]
[1718859159188,0.17,134.17,134.08,21.5272]
[1718859159189,7.6233,134.17,134.08,21.5272]
[1718859159386,20.0,134.16,134.08,21.5272]
[1718859159682,27.6241,134.16,134.08,21.5272]
[1718859160480,20.17,134.16,134.08,21.5272]
[1718859160784,0.17,134.14,134.08,21.5272]
[1718859160984,7.456,134.12,134.08,21.5272]
[1718859161170,7.4555,134.13,134.08,21.5272]
[1718859161370,65.51,134.12,134.08,21.5272]
[1718859161572,20.51,134.12,134.08,21.5272]
[1718859161878,20.34,134.12,134.08,15.2113]
[1718859162073,20.0,134.12,134.08,15.2113]
[1718859162481,27.4561,134.12,134.08,15.2113]
[1718859163067,20.0,134.12,134.08,15.2113]
[1718859163265,27.4561,134.12,134.08,15.2113]
[1718859163980,0.51,134.11,134.08,15.2113]
[1718859164483,0.17,134.11,134.08,15.2113]
[1718859164684,20.0,134.12,134.08,15.2113]
[1718859165383,27.456,134.12,134.08,15.2113]
[1718859166167,20.0,134.12,134.08,15.2113]
[1718859167192,27.4563,134.12,134.08,15.2113]
[1718859170591,0.34,134.11,134.08,15.2113]
[1718859171597,27.4563,134.12,134.08,15.2113]
[1718859173787,7.4565,134.11,134.08,15.2113]
[1718859174380,20.0,134.12,134.08,15.2113]
[1718859174786,7.4563,134.12,134.08,15.2113]
[1718859176396,7.4569,134.11,134.08,15.2113]
[1718859176599,20.0,134.1,134.05,22.2475]
[1718859176800,7.9657,134.13,134.05,22.2475]
[1718859177001,20.0,134.12,134.05,22.2475]
[1718859177303,27.456,134.12,134.05,22.2475]
[1718859180601,0.17,134.11,134.05,22.2475]
[1718859180779,7.4588,134.07,134.05,15.9299]
[1718859181307,7.4594,134.06,134.02,22.1917]
[1718859181808,7.4601,134.05,134.02,22.1917]
[1718859182392,7.4595,134.06,134.02,22.1917]
[1718859182590,0.51,134.07,134.02,22.1917]
[1718859182791,7.4594,134.06,134.02,22.1917]
[1718859183202,0.51,134.07,134.02,22.1917]
[1718859183502,0.17,134.07,134.02,22.1917]
[1718859183814,8.1392,134.07,134.02,22.1917]
[1718859184006,0.68,134.07,134.02,22.1917]
[1718859184205,20.0,134.07,134.02,22.1917]
[1718859184402,7.4583,134.08,134.02,22.1917]
[1718859184590,20.0,134.07,134.02,22.1917]
[1718859184912,20.34,134.09,134.02,22.1917]
[1718859185595,7.9685,134.08,134.02,22.1917]
[1718859186384,0.17,134.08,134.02,22.1917]
[1718859186701,20.0,134.08,134.02,22.1917]
[1718859188297,27.4583,134.08,134.02,22.1917]
[1718859188900,53.139,134.07,134.02,22.1917]
[1718859189206,20.0,134.06,134.02,22.1917]
[1718859190388,45.51,134.07,134.02,22.1917]
[1718859190389,7.4588,134.07,134.02,22.1917]
[1718859190709,0.51,134.06,134.02,22.1917]
[1718859191807,0.17,134.08,134.02,22.1917]
[1718859192106,73.1384,134.08,134.02,22.1917]
[1718859192502,7.4588,134.07,134.02,22.1917]
[1718859192703,73.1384,134.08,134.02,22.1917]
[1718859192900,7.4589,134.07,134.02,22.1917]
[1718859193206,65.68,134.08,134.02,22.1917]
[1718859193405,73.1384,134.08,134.02,22.1917]
[1718859194011,20.0,134.08,134.02,22.1917]
[1718859194205,7.4566,134.11,134.02,22.1917]
[1718859194400,20.0,134.1,134.02,22.1917]
[1718859195210,7.4555,134.13,134.03,0.17]
[1718859195506,27.4563,134.12,134.03,65.0]
[1718859195706,27.4563,134.12,134.03,65.34]
[1718859195906,20.0,134.12,134.04,0.17]
[1718859196218,7.4565,134.11,134.03,65.0]
[1718859196391,7.4565,134.11,134.03,20.0]
[1718859196713,7.4572,134.1,134.03,20.0]
[1718859196886,7.4572,134.1,134.02,22.3617]
[1718859197091,7.4568,134.11,134.02,22.3617]
[1718859197292,7.4571,134.1,134.02,22.1917]